lending/lending_fUSD_20250131
["ID","MTS","AMOUNT","RATE_DAILY","PERIOD"]
[351030302,1738301449326,-4607.05,0.00019315,3]
[351030303,1738301449339,-5696.17,0.00019315,3]
[351030304,1738301449351,-769.94,0.00019315,3]
[351030305,1738301449363,-1736.62,0.00019315,3]
[351030306,1738301449375,-500.0,0.00019315,3]
[351030307,1738301449386,-2000.62,0.00019315,3]
[351030308,1738301449397,-1837.06,0.00019315,3]
[351030309,1738301449409,-1293.95,0.00019315,3]
[351030310,1738301449422,-3719.83,0.00019315,3]
[351030311,1738301449433,-500.0,0.00019315,3]
[351030312,1738301449444,-3066.89,0.00019315,3]
[351030313,1738301449456,-500.0,0.00019315,3]
[351030314,1738301449468,-500.0,0.00019315,3]
[351030315,1738301449480,-3919.08,0.00019315,3]
[351030316,1738301449492,-509.75,0.00019315,3]
[351030317,1738301449505,-523.08,0.00019315,3]
[351030318,1738301449519,-3009.01,0.00019315,3]
[351030319,1738301449528,-500.0,0.00019315,3]
[351030320,1738301449539,-1823.11,0.00019315,3]
[351030321,1738301449550,-1490.79,0.00019315,3]
[351030322,1738301450010,-1001.77,0.00019315,3]
[351030323,1738301450036,-9971.99,0.00019315,3]
[351030324,1738301450048,-729.83,0.00019315,3]
[351030325,1738301450057,-2546.12,0.00019315,3]
[351030326,1738301450069,-2335.48,0.00019315,3]
[351030327,1738301450082,-500.0,0.00019315,3]
[351030328,1738301450091,-500.0,0.00019315,3]
[351030329,1738301450101,-500.0,0.00019315,3]
[351030330,1738301450113,-500.0,0.00019315,3]
[351030331,1738301450123,-2888.81,0.00019315,3]
[351030332,1738301450133,-500.0,0.00019315,3]
[351030333,1738301450143,-2745.14,0.00019315,3]
[351030334,1738301450152,-1274.86,0.00019315,3]
[351030335,1738301450162,-1297.49,0.00019315,3]
[351030336,1738301450172,-604.18,0.00019315,3]
[351030337,1738301450181,-635.47328765,0.00019315,3]
[351030338,1738301450191,-500.0,0.00019315,3]
[351030339,1738301450202,-500.0,0.00019315,3]
[351030340,1738301450212,-500.0,0.00019315,3]
[351030341,1738301450223,-972.51,0.00019315,3]
[351030342,1738301450232,-226.79861655,0.00019315,3]
[351030343,1738301450242,-2384.17,0.00019315,3]
[351030344,1738301450252,-2189.23,0.00019315,3]
[351030345,1738301450261,-1427.14,0.00019315,3]
[351030346,1738301450270,-500.0,0.00019315,3]
[351030347,1738301450279,-500.0,0.00019315,3]
[351030348,1738301450288,-1854.09,0.00019315,3]
[351030349,1738301450297,-1598.55,0.00019315,3]
[351030350,1738301450306,-335.7551522,0.00019315,3]
[351030351,1738301450315,-500.0,0.00019315,3]
[351030352,1738301450325,-500.0,0.00019315,3]
[351030353,1738301450334,-4563.53,0.00019315,3]
[351030354,1738301450344,-593.54,0.00019315,3]
[351030355,1738301450353,-1044.49,0.00019315,3]
[351030356,1738301450362,-1298.97,0.00019315,3]
[351030357,1738301450371,-943.62,0.00019315,3]
[351030358,1738301450381,-3528.25,0.00019315,3]
[351030359,1738301450390,-1836.64,0.00019315,3]
[351030360,1738301450400,-500.0,0.00019315,3]
[351030361,1738301450410,-500.0,0.00019315,3]
[351030362,1738301450419,-500.0,0.00019315,3]
[351030363,1738301450428,-1442.22,0.00019315,3]
[351030364,1738301450438,-500.0,0.00019315,3]
[351030365,1738301450447,-500.0,0.00019315,3]
[351030366,1738301450456,-1260.34,0.00019315,3]
[351030367,1738301450465,-3121.04,0.00019315,3]
[351030368,1738301450475,-1385.11,0.00019315,3]
[351030369,1738301450484,-2298.22,0.00019315,3]
[351030370,1738301450494,-1045.84,0.00019315,3]
[351030371,1738301450504,-500.0,0.00019315,3]
[351030372,1738301450513,-636.37,0.00019315,3]
[351030373,1738301450522,-917.12,0.00019315,3]
[351030374,1738301450532,-500.0,0.00019315,3]
[351030375,1738301450541,-500.0,0.00019315,3]
[351030376,1738301450551,-500.0,0.00019315,3]
[351030377,1738301450561,-520.65,0.00019315,3]
[351030378,1738301450570,-9960.4703289,0.00019331,2]
[351030379,1738301450579,-151.0,0.00019331,2]
[351030380,1738301450589,-187.266091,0.00019331,2]
[351030381,1738301450600,-192.632199,0.00019331,2]
[351030382,1738301450610,-151.0,0.00019331,2]
[351030383,1738301450619,-151.0,0.00019331,2]
[351030384,1738301450628,-4401.79697588,0.00019339,2]
[351030385,1738301450638,-151.0,0.00019339,2]
[351030386,1738301450647,-151.0,0.00019339,2]
[351030387,1738301450657,-151.0,0.00019339,2]
[351030388,1738301450666,-151.0,0.00019339,2]
[351030389,1738301450676,-184.926739,0.00019339,2]
[351030390,1738301450685,-6407.95,0.00019339,2]
[351030391,1738301450695,-150.99,0.00019339,2]
[351030392,1738301450705,-500.0,0.00019364,2]
[351030393,1738301450714,-500.0,0.00019373,2]
[351030394,1738301450724,-500.0,0.00019373,2]
[351030395,1738301450733,-593.01277253,0.00019373,2]
[351030396,1738301450742,-281.915532,0.00019389,2]
[351030397,1738301450752,-281.915532,0.00019389,2]
[351030398,1738301450761,-151.0,0.00019389,2]
[351030399,1738301450770,-151.0,0.00019389,2]
[351030400,1738301450780,-151.0,0.00019389,2]
[351030401,1738301450790,-220.984685,0.00019389,2]
[351030402,1738301450799,-151.0,0.00019389,2]
[351030403,1738301450809,-151.0,0.00019389,2]
[351030404,1738301450818,-47331.30344746,0.00019389,2]
[351030405,1738301450828,-168.66754733,0.00019392,2]
[351030406,1738301450838,-208.0,0.0001941,2]
[351030407,1738301450850,-4401.79697588,0.00019431,2]
[351030408,1738301450860,-500.0,0.0001945,3]
[351030409,1738301450870,-588.95,0.0001945,2]
[351030410,1738301450880,-500.0,0.00019451,3]
[351030411,1738301450890,-584.81,0.00019451,3]
[351030412,1738301450899,-500.0,0.00019451,3]
[351030413,1738301450909,-500.0,0.00019451,3]
[351030414,1738301450919,-500.0,0.00019451,3]
[351030415,1738301450928,-759.37,0.00019451,3]
[351030416,1738301450941,-551.10265873,0.00019451,3]
[351030417,1738301450957,-500.0,0.00019451,3]
[351030418,1738301450966,-500.0,0.00019451,3]
[351030419,1738301450977,-500.0,0.00019451,3]
[351030420,1738301450986,-500.0,0.00019451,3]
[351030421,1738301450996,-500.0,0.00019451,3]
[351030422,1738301451006,-500.0,0.00019451,3]
[351030423,1738301451015,-762.88,0.00019451,3]
[351030424,1738301451024,-1157.23,0.00019451,3]
[351030425,1738301451034,-500.0,0.00019451,3]
[351030426,1738301451043,-500.0,0.00019451,3]
[351030427,1738301451053,-500.0,0.00019451,3]
[351030428,1738301451064,-500.0,0.00019451,3]
[351030429,1738301451073,-500.0,0.00019451,3]
[351030430,1738301451083,-500.0,0.00019451,3]
[351030431,1738301451092,-500.0,0.00019451,3]
[351030432,1738301451102,-500.0,0.00019451,3]
[351030433,1738301451113,-500.0,0.00019451,3]
[351030434,1738301451125,-500.0,0.00019451,3]
[351030435,1738301451135,-500.0,0.00019451,3]
[351030436,1738301451145,-500.0,0.00019451,3]
[351030437,1738301451154,-500.0,0.00019451,3]
[351030438,1738301451166,-592.78,0.00019451,3]
[351030439,1738301451176,-500.0,0.00019451,3]
[351030440,1738301451186,-590.24,0.00019451,3]
[351030441,1738301451196,-500.0,0.00019451,3]
[351030442,1738301451205,-500.0,0.00019451,3]
[351030443,1738301451215,-576.29,0.00019451,3]
[351030444,1738301451224,-500.0,0.00019451,3]
[351030445,1738301451233,-500.0,0.00019451,3]
[351030446,1738301451242,-500.0,0.00019451,3]
[351030447,1738301451251,-500.0,0.00019451,3]
[351030448,1738301451261,-703.51,0.00019451,3]
[351030449,1738301451272,-500.0,0.00019451,3]
[351030450,1738301451281,-500.0,0.00019451,3]
[351030451,1738301451290,-500.0,0.00019451,3]
[351030452,1738301451300,-151.0,0.00019451,2]
[351030453,1738301451309,-768.67,0.00019451,3]
[351030454,1738301451319,-500.0,0.00019451,3]
[351030455,1738301451328,-500.0,0.00019451,3]
[351030456,1738301451337,-500.0,0.00019451,3]
[351030457,1738301451348,-628.18,0.00019451,3]
[351030458,1738301451357,-506.66,0.00019451,3]
[351030459,1738301451366,-500.0,0.00019451,3]
[351030460,1738301451375,-844.99,0.00019451,3]
[351030461,1738301451385,-266.43243527,0.00019451,3]
[351030462,1738301451394,-500.0,0.00019451,3]
[351030463,1738301451404,-500.0,0.00019451,3]
[351030464,1738301451413,-500.0,0.00019451,3]
[351030465,1738301451423,-758.07,0.00019451,3]
[351030466,1738301451432,-5000.0,0.00019451,4]
[351030467,1738301451442,-300.0,0.00019451,2]
[351030468,1738301451451,-1031.48,0.00019452,3]
[351030469,1738301451460,-580.93,0.00019452,3]
[351030470,1738301451469,-500.0,0.00019452,3]
[351030471,1738301451478,-500.0,0.00019452,3]
[351030472,1738301451487,-500.0,0.00019452,3]
[351030473,1738301451497,-500.0,0.00019452,3]
[351030474,1738301451506,-500.0,0.00019452,3]
[351030475,1738301451515,-500.0,0.00019452,3]
[351030476,1738301451525,-500.0,0.00019452,3]
[351030477,1738301451535,-668.89,0.00019452,3]
[351030478,1738301451544,-500.0,0.00019452,3]
[351030479,1738301451554,-500.0,0.00019452,3]
[351030480,1738301451563,-500.0,0.00019452,3]
[351030481,1738301451573,-556.35,0.00019452,3]
[351030482,1738301451582,-500.0,0.00019452,3]
[351030483,1738301451592,-500.0,0.00019452,3]
[351030484,1738301451602,-500.0,0.00019452,3]
[351030485,1738301451612,-500.0,0.00019452,3]
[351030486,1738301451622,-500.0,0.00019452,3]
[351030487,1738301451631,-500.0,0.00019452,3]
[351030488,1738301451641,-577.39,0.00019452,3]
[351030489,1738301451650,-500.0,0.00019452,3]
[351030490,1738301451660,-500.0,0.00019452,3]
[351030491,1738301451669,-533.63,0.00019452,3]
[351030492,1738301451679,-500.0,0.00019452,3]
[351030493,1738301451688,-500.0,0.00019452,3]
[351030494,1738301451697,-500.0,0.00019452,3]
[351030495,1738301451707,-500.0,0.00019452,3]
[351030496,1738301451716,-1113.16,0.00019452,3]
[351030497,1738301451726,-500.0,0.00019452,3]
[351030498,1738301451736,-500.0,0.00019452,3]
[351030499,1738301451745,-500.0,0.00019452,3]
[351030500,1738301451755,-3468.939684,0.00019452,3]
[351030501,1738301451764,-500.0,0.00019452,3]
[351030502,1738301451774,-152.930379,0.00019452,3]
[351030503,1738301451784,-500.0,0.00019452,3]
[351030504,1738301451793,-500.0,0.00019452,3]
[351030505,1738301451803,-500.0,0.00019452,3]
[351030506,1738301451812,-945.71,0.00019452,3]
[351030507,1738301451821,-500.0,0.00019452,3]
[351030508,1738301451831,-2451.831411,0.00019452,3]
[351030509,1738301451840,-500.0,0.00019452,3]
[351030510,1738301451850,-714.12,0.00019452,3]
[351030511,1738301451860,-500.0,0.00019452,3]
[351030512,1738301451869,-500.0,0.00019452,3]
[351030513,1738301451878,-600.11,0.00019452,3]
[351030514,1738301451888,-500.0,0.00019452,3]
[351030515,1738301451897,-500.0,0.00019452,3]
[351030516,1738301451907,-512.19,0.00019452,3]
[351030517,1738301451916,-500.0,0.00019452,3]
[351030518,1738301451925,-500.0,0.00019452,3]
[351030519,1738301451935,-500.0,0.00019452,3]
[351030520,1738301451945,-500.0,0.00019452,3]
[351030521,1738301451957,-968.05,0.00019452,3]
[351030522,1738301451966,-548.27,0.00019452,3]
[351030523,1738301451976,-1811.08,0.00019452,3]
[351030524,1738301451985,-592.21,0.00019452,3]
[351030525,1738301451995,-500.0,0.00019452,3]
[351030526,1738301452004,-500.0,0.00019452,3]
[351030527,1738301452017,-534.18,0.00019452,3]
[351030528,1738301452027,-1432.04,0.00019452,3]
[351030529,1738301452038,-151.0,0.00019452,2]
[351030530,1738301452047,-500.0,0.00019452,3]
[351030531,1738301452057,-618.73,0.00019452,3]
[351030532,1738301452068,-500.0,0.00019452,3]
[351030533,1738301452077,-1180.38,0.00019452,3]
[351030534,1738301452087,-1557.64,0.00019452,3]
[351030535,1738301452099,-654.78,0.00019452,3]
[351030536,1738301452108,-500.0,0.00019452,3]
[351030537,1738301452121,-500.0,0.00019452,3]
[351030538,1738301452131,-500.0,0.00019452,3]
[351030539,1738301452140,-688.33,0.00019452,3]
[351030540,1738301452149,-739.44,0.00019452,3]
[351030541,1738301452159,-1000.98,0.00019452,3]
[351030542,1738301452168,-782.64,0.00019452,3]
[351030543,1738301452178,-663.82,0.00019452,3]
[351030544,1738301452188,-1415.57,0.00019452,3]
[351030545,1738301452208,-500.0,0.00019452,3]
[351030546,1738301452224,-500.0,0.00019452,3]
[351030547,1738301452234,-578.53,0.00019452,3]
[351030548,1738301452243,-770.59,0.00019452,3]
[351030549,1738301452252,-944.57,0.00019452,3]
[351030550,1738301452262,-724.12,0.00019452,3]
[351030551,1738301452271,-500.0,0.00019452,3]
[351030552,1738301452281,-741.64,0.00019452,3]
[351030553,1738301452291,-1675.52,0.00019452,3]
[351030554,1738301452301,-752.95,0.00019452,3]
[351030555,1738301452310,-670.74,0.00019452,3]
[351030556,1738301452320,-500.0,0.00019452,3]
[351030557,1738301452331,-1929.23,0.00019452,3]
[351030558,1738301452343,-697.3,0.00019452,3]
[351030559,1738301452352,-698.89,0.00019452,3]
[351030560,1738301452362,-716.53,0.00019452,3]
[351030561,1738301452374,-500.0,0.00019452,3]
[351030562,1738301452383,-594.18,0.00019452,3]
[351030563,1738301452393,-1177.73,0.00019452,3]
[351030564,1738301452403,-606.36,0.00019452,3]
[351030565,1738301452413,-692.8,0.00019452,3]
[351030566,1738301452425,-500.0,0.00019452,3]
[351030567,1738301452436,-1033.79,0.00019452,3]
[351030568,1738301452446,-507.34743614,0.00019452,3]
[351030569,1738301452455,-500.0,0.00019452,3]
[351030570,1738301452466,-672.69,0.00019452,3]
[351030571,1738301452477,-592.23,0.00019452,3]
[351030572,1738301452489,-500.0,0.00019452,3]
[351030573,1738301452500,-588.15,0.00019452,3]
[351030574,1738301452510,-668.74,0.00019452,3]
[351030575,1738301452521,-1202.42,0.00019452,3]
[351030576,1738301452530,-569.49,0.00019452,3]
[351030577,1738301452541,-500.0,0.00019452,3]
[351030578,1738301452552,-875.82,0.00019452,3]
[351030579,1738301452563,-540.19,0.00019452,3]
[351030580,1738301452572,-500.0,0.00019452,3]
[351030581,1738301452582,-1057.5,0.00019452,3]
[351030582,1738301452591,-1247.9,0.00019452,3]
[351030583,1738301452601,-542.18,0.00019452,3]
[351030584,1738301452611,-500.0,0.00019452,3]
[351030585,1738301452620,-500.0,0.00019452,3]
[351030586,1738301452630,-1115.39,0.00019452,3]
[351030587,1738301452639,-543.4,0.00019452,3]
[351030588,1738301452649,-500.0,0.00019452,3]
[351030589,1738301452658,-500.0,0.00019452,3]
[351030590,1738301452668,-861.4,0.00019452,3]
[351030591,1738301452679,-500.0,0.00019452,3]
[351030592,1738301452692,-500.0,0.00019452,3]
[351030593,1738301452702,-476.03258157,0.00019452,3]
[351030594,1738301452713,-704.27,0.00019452,3]
[351030595,1738301452723,-749.91,0.00019452,3]
[351030596,1738301452733,-500.0,0.00019452,3]
[351030597,1738301452743,-1414.14,0.00019452,3]
[351030598,1738301452753,-849.54,0.00019452,3]
[351030599,1738301452763,-1501.61,0.00019452,3]
[351030600,1738301452774,-500.0,0.00019452,3]
[351030601,1738301452784,-641.99,0.00019452,3]
[351030602,1738301452793,-500.0,0.00019452,3]
[351030603,1738301452804,-1058.81,0.00019452,3]
[351030604,1738301452814,-982.38,0.00019452,3]
[351030605,1738301452824,-500.0,0.00019452,3]
[351030606,1738301452833,-682.82,0.00019452,3]
[351030607,1738301452844,-500.0,0.00019452,3]
[351030608,1738301452853,-717.1,0.00019452,3]
[351030609,1738301452862,-610.98,0.00019452,3]
[351030610,1738301452873,-1510.03,0.00019452,3]
[351030611,1738301452883,-500.0,0.00019452,3]
[351030612,1738301452907,-1186.41,0.00019452,3]
[351030613,1738301452919,-737.71,0.00019452,3]
[351030614,1738301452930,-500.0,0.00019452,3]
[351030615,1738301452940,-1703.2,0.00019452,3]
[351030616,1738301452952,-662.02,0.00019452,3]
[351030617,1738301452963,-500.0,0.00019452,3]
[351030618,1738301452973,-715.51,0.00019452,3]
[351030619,1738301452984,-1245.61,0.00019452,3]
[351030620,1738301452995,-150.96184877,0.00019452,3]
[351030621,1738301453005,-600.22,0.00019452,3]
[351030622,1738301453015,-673.97,0.00019452,3]
[351030623,1738301453025,-500.0,0.00019452,3]
[351030624,1738301453036,-500.0,0.00019452,3]
[351030625,1738301453046,-500.0,0.00019452,3]
[351030626,1738301453056,-736.85,0.00019452,3]
[351030627,1738301453066,-658.3,0.00019452,3]
[351030628,1738301453077,-732.79,0.00019452,3]
[351030629,1738301453087,-500.0,0.00019452,3]
[351030630,1738301453099,-506.8460636,0.00019452,3]
[351030631,1738301453110,-500.0,0.00019452,3]
[351030632,1738301453124,-761.23,0.00019452,3]
[351030633,1738301453134,-1167.39,0.00019452,3]
[351030634,1738301453144,-500.0,0.00019452,3]
[351030635,1738301453155,-500.0,0.00019452,3]
[351030636,1738301453165,-912.55,0.00019452,3]
[351030637,1738301453175,-500.0,0.00019452,3]
[351030638,1738301453185,-500.0,0.00019452,3]
[351030639,1738301453197,-893.93,0.00019452,3]
[351030640,1738301453208,-500.0,0.00019452,3]
[351030641,1738301453218,-500.0,0.00019452,3]
[351030642,1738301453228,-500.0,0.00019452,3]
[351030643,1738301453238,-947.81,0.00019452,3]
[351030644,1738301453248,-500.0,0.00019452,3]
[351030645,1738301453258,-600.02,0.00019452,3]
[351030646,1738301453268,-829.97,0.00019452,3]
[351030647,1738301453560,-500.0,0.00019452,3]
[351030648,1738301453570,-500.0,0.00019452,3]
[351030649,1738301453582,-636.5,0.00019452,3]
[351030650,1738301453592,-151.0,0.00019452,2]
[351030651,1738301453602,-1406.67,0.00019452,3]
[351030652,1738301453611,-849.42,0.00019452,3]
[351030653,1738301453621,-500.0,0.00019452,3]
[351030654,1738301453631,-1380.74,0.00019452,3]
[351030655,1738301453641,-728.25,0.00019452,3]
[351030656,1738301453651,-500.0,0.00019452,3]
[351030657,1738301453660,-1963.59,0.00019452,3]
[351030658,1738301453669,-500.0,0.00019452,3]
[351030659,1738301453679,-458.18171447,0.00019452,3]
[351030660,1738301453688,-847.46,0.00019452,3]
[351030661,1738301453699,-1196.13,0.00019452,3]
[351030662,1738301453708,-1792.21,0.00019452,3]
[351030663,1738301453718,-923.59,0.00019452,3]
[351030664,1738301453727,-1114.71,0.00019452,3]
[351030665,1738301453737,-1758.05,0.00019452,3]
[351030666,1738301453747,-500.0,0.00019452,3]
[351030667,1738301453758,-739.29,0.00019452,3]
[351030668,1738301453768,-710.98,0.00019452,3]
[351030669,1738301453779,-500.0,0.00019452,3]
[351030670,1738301453789,-831.41,0.00019452,3]
[351030671,1738301453799,-1679.77,0.00019452,3]
[351030672,1738301453813,-500.0,0.00019452,3]
[351030673,1738301453823,-994.45,0.00019452,3]
[351030674,1738301453834,-798.64,0.00019452,3]
[351030675,1738301453844,-1481.51,0.00019452,3]
[351030676,1738301453853,-500.0,0.00019452,3]
[351030677,1738301453863,-1369.48,0.00019452,3]
[351030678,1738301453873,-500.0,0.00019452,3]
[351030679,1738301453882,-984.58,0.00019452,3]
[351030680,1738301453892,-505.01,0.00019452,3]
[351030681,1738301453901,-673.1,0.00019452,3]
[351030682,1738301453911,-1009.72,0.00019452,3]
[351030683,1738301453921,-500.0,0.00019452,3]
[351030684,1738301453930,-500.0,0.00019452,3]
[351030685,1738301453940,-500.0,0.00019452,3]
[351030686,1738301453950,-519.53,0.00019452,3]
[351030687,1738301453959,-151.0,0.00019452,2]
[351030688,1738301453969,-151.0,0.00019452,2]
[351030689,1738301453980,-500.0,0.00019452,3]
[351030690,1738301453989,-500.0,0.00019452,3]
[351030691,1738301453999,-505.17,0.00019452,3]
[351030692,1738301454008,-1080.35,0.00019452,3]
[351030693,1738301454018,-645.56,0.00019452,3]
[351030694,1738301454028,-1332.28,0.00019452,3]
[351030695,1738301454038,-1523.04,0.00019452,3]
[351030696,1738301454047,-500.0,0.00019452,3]
[351030697,1738301454057,-500.0,0.00019452,3]
[351030698,1738301454067,-500.0,0.00019452,3]
[351030699,1738301454076,-579.2,0.00019452,3]
[351030700,1738301454085,-612.38,0.00019452,3]
[351030701,1738301454096,-2182.26,0.00019452,3]
[351030702,1738301454106,-500.0,0.00019452,3]
[351030703,1738301454118,-344.53264468,0.00019452,3]
[351030704,1738301454128,-1849.77,0.00019452,3]
[351030705,1738301454138,-787.08,0.00019452,3]
[351030706,1738301454147,-500.0,0.00019452,3]
[351030707,1738301454158,-500.0,0.00019452,3]
[351030708,1738301454168,-500.0,0.00019452,3]
[351030709,1738301454178,-1306.69,0.00019452,3]
[351030710,1738301454187,-1185.88,0.00019452,3]
[351030711,1738301454197,-500.0,0.00019452,3]
[351030712,1738301454207,-500.0,0.00019452,3]
[351030713,1738301454217,-500.0,0.00019452,3]
[351030714,1738301454227,-739.62,0.00019452,3]
[351030715,1738301454237,-1080.87,0.00019452,3]
[351030716,1738301454246,-632.18,0.00019452,3]
[351030717,1738301454256,-500.0,0.00019452,3]
[351030718,1738301454266,-1343.21,0.00019452,3]
[351030719,1738301454275,-1151.99,0.00019452,3]
[351030720,1738301454285,-500.0,0.00019452,3]
[351030721,1738301454295,-792.23,0.00019452,3]
[351030722,1738301454304,-1331.77,0.00019452,3]
[351030723,1738301454318,-694.87,0.00019452,3]
[351030724,1738301454328,-2213.48,0.00019452,3]
[351030725,1738301454338,-7368.92,0.00019452,3]
[351030726,1738301454348,-500.0,0.00019452,3]
[351030727,1738301454358,-500.0,0.00019452,3]
[351030728,1738301454367,-824.06,0.00019452,3]
[351030729,1738301454377,-2817.74,0.00019452,3]
[351030730,1738301454387,-1125.68,0.00019452,3]
[351030731,1738301454396,-500.0,0.00019452,3]
[351030732,1738301454407,-577.65,0.00019452,3]
[351030733,1738301454416,-2935.97,0.00019452,3]
[351030734,1738301454426,-500.0,0.00019452,3]
[351030735,1738301454436,-151.0,0.00019452,2]
[351030736,1738301454447,-1846.87,0.00019452,3]
[351030737,1738301454457,-675.76,0.00019452,3]
[351030738,1738301454467,-2334.88,0.00019452,3]
[351030739,1738301454478,-1091.13,0.00019452,3]
[351030740,1738301454488,-1150.98,0.00019452,2]
[351030741,1738301454499,-1437.25,0.00019452,3]
[351030742,1738301454509,-2277.22,0.00019452,3]
[351030743,1738301454520,-151.0,0.00019452,2]
[351030744,1738301454530,-500.0,0.00019452,3]
[351030745,1738301454540,-5475.11,0.00019452,3]
[351030746,1738301454550,-500.0,0.00019452,3]
[351030747,1738301454559,-500.0,0.00019452,3]
[351030748,1738301454570,-500.0,0.00019452,3]
[351030749,1738301454581,-500.0,0.00019452,3]
[351030750,1738301454591,-3332.44,0.00019452,3]
[351030751,1738301454603,-1677.96,0.00019452,3]
[351030752,1738301454613,-500.0,0.00019452,3]
[351030753,1738301454622,-500.0,0.00019452,3]
[351030754,1738301454633,-824.87,0.00019452,3]
[351030755,1738301454643,-823.48,0.00019452,3]
[351030756,1738301454653,-500.0,0.00019452,3]
[351030757,1738301454663,-1897.24,0.00019452,3]
[351030758,1738301454673,-18202.79,0.00019452,3]
[351030759,1738301454682,-500.0,0.00019452,3]
[351030760,1738301454692,-500.0,0.00019452,3]
[351030761,1738301454701,-1516.36,0.00019452,3]
[351030762,1738301454712,-1467.6,0.00019452,3]
[351030763,1738301454722,-500.0,0.00019452,3]
[351030764,1738301454731,-1520.66,0.00019452,3]
[351030765,1738301454741,-1558.27,0.00019452,3]
[351030766,1738301454751,-500.0,0.00019452,3]
[351030767,1738301454761,-3293.33,0.00019452,3]
[351030768,1738301454770,-1169.06,0.00019452,3]
[351030769,1738301454780,-500.0,0.00019452,3]
[351030770,1738301454789,-9062.21,0.00019452,3]
[351030771,1738301454799,-500.0,0.00019452,3]
[351030772,1738301454808,-747.99,0.00019452,3]
[351030773,1738301454818,-1804.44,0.00019452,3]
[351030774,1738301454828,-500.0,0.00019452,3]
[351030775,1738301454838,-500.0,0.00019452,3]
[351030776,1738301454848,-281.915532,0.00019452,2]
[351030777,1738301454858,-281.915532,0.00019452,2]
[351030778,1738301454867,-2334.42,0.00019452,3]
[351030779,1738301454877,-281.915532,0.00019452,2]
[351030780,1738301454886,-2036.52,0.00019452,3]
[351030781,1738301454895,-281.915532,0.00019452,2]
[351030782,1738301454906,-500.0,0.00019452,3]
[351030783,1738301454915,-589.68,0.00019452,3]
[351030784,1738301454925,-500.0,0.00019452,3]
[351030785,1738301454935,-737.98,0.00019452,3]
[351030786,1738301454946,-500.0,0.00019452,3]
[351030787,1738301454956,-1877.53,0.00019452,3]
[351030788,1738301454965,-2831.42,0.00019452,3]
[351030789,1738301454975,-2138.68,0.00019452,3]
[351030790,1738301454986,-946.23,0.00019452,3]
[351030791,1738301454997,-1290.34,0.00019452,3]
[351030792,1738301455009,-2672.06,0.00019452,3]
[351030793,1738301455021,-1826.29,0.00019452,3]
[351030794,1738301455031,-2434.41,0.00019452,3]
[351030795,1738301455041,-2762.83,0.00019452,3]
[351030796,1738301455050,-1753.18,0.00019452,3]
[351030797,1738301455060,-866.79,0.00019452,3]
[351030798,1738301455069,-1557.84,0.00019452,3]
[351030799,1738301455078,-846.5,0.00019452,3]
[351030800,1738301455088,-5078.56,0.00019452,3]
[351030801,1738301455098,-2383.5,0.00019452,3]